[Event "Elitserien 2022/2023"]
[Site "Elite Hotel Marina Plaza, Kungstorget 6, Helsingborg, Sweden"]
[Date "2022.10.14"]
[Round "1.10"]
[White "Bergstrom, Peter"]
[Black "Von Bahr, Oskar"]
[Result "1/2-1/2"]
[TimeControl "90 minutes for 40 moves + 30 minutes for the rest of the game + 30 seconds per move from move one."]
[WhiteTitle "FM"]
[BlackTitle "IM"]
[WhiteFideId "1702467"]
[BlackFideId "1703250"]
[WhiteElo "2319"]
[BlackElo "2381"]

1. e4 {[%clk 01:30:56]} {[%emt 00:00:04]} e5 {[%clk 01:30:56]} {[%emt
00:00:04]} 2. Nf3 {[%clk 01:31:06]} {[%emt 00:00:20]} Nc6 {[%clk 01:31:22]}
{[%emt 00:00:05]} 3. Nc3 {[%clk 01:31:04]} {[%emt 00:00:32]} Nf6 {[%clk
01:31:37]} {[%emt 00:00:14]} 4. d4 {[%clk 01:30:53]} {[%emt 00:00:41]} exd4
{[%clk 01:31:50]} {[%emt 00:00:17]} 5. Nxd4 {[%clk 01:31:20]} {[%emt 00:00:03]}
Bb4 {[%clk 01:31:40]} {[%emt 00:00:38]} 6. Nxc6 {[%clk 01:29:39]} {[%emt
00:02:14]} bxc6 {[%clk 01:31:56]} {[%emt 00:00:13]} 7. Bd3 {[%clk 01:29:35]}
{[%emt 00:00:34]} O-O {[%clk 01:30:07]} {[%emt 00:02:19]} 8. O-O {[%clk
01:28:22]} {[%emt 00:01:43]} d5 {[%clk 01:30:21]} {[%emt 00:00:17]} 9. exd5
{[%clk 01:27:50]} {[%emt 00:01:02]} Bg4 {[%clk 01:30:22]} {[%emt 00:00:28]} 10.
Be2 {[%clk 01:20:38]} {[%emt 00:07:43]} Bxe2 {[%clk 01:29:51]} {[%emt
00:01:01]} 11. Nxe2 {[%clk 01:18:43]} {[%emt 00:02:24]} cxd5 {[%clk 01:20:08]}
{[%emt 00:10:14]} 12. Bg5 {[%clk 01:14:47]} {[%emt 00:04:25]} Be7 {[%clk
01:17:06]} {[%emt 00:03:32]} 13. Nd4 {[%clk 01:11:53]} {[%emt 00:03:24]} Qd7
{[%clk 01:16:25]} {[%emt 00:01:11]} 14. Qd3 {[%clk 01:03:22]} {[%emt 00:09:02]}
Qg4 {[%clk 01:02:00]} {[%emt 00:14:54]} 15. h4 {[%clk 00:55:14]} {[%emt
00:08:38]} Qe4 {[%clk 00:39:22]} {[%emt 00:23:08]} 16. Rfe1 {[%clk 00:42:58]}
{[%emt 00:12:47]} Qxd3 {[%clk 00:38:49]} {[%emt 00:01:03]} 17. cxd3 {[%clk
00:43:26]} {[%emt 00:00:02]} Rfe8 {[%clk 00:32:57]} {[%emt 00:06:22]} 18. Nc6
{[%clk 00:38:31]} {[%emt 00:05:25]} Kf8 {[%clk 00:29:32]} {[%emt 00:03:54]} 19.
Rac1 {[%clk 00:31:33]} {[%emt 00:07:29]} Bd6 {[%clk 00:28:43]} {[%emt
00:01:19]} 20. Bxf6 {[%clk 00:30:51]} {[%emt 00:01:11]} gxf6 {[%clk 00:28:33]}
{[%emt 00:00:40]} 21. Rxe8+ {[%clk 00:20:30]} {[%emt 00:10:51]} Kxe8 {[%clk
00:27:20]} {[%emt 00:01:43]} 22. b4 {[%clk 00:20:38]} {[%emt 00:00:23]} Kd7
{[%clk 00:25:43]} {[%emt 00:02:07]} 23. a3 {[%clk 00:18:30]} {[%emt 00:02:37]}
a6 {[%clk 00:19:58]} {[%emt 00:06:15]} 24. Kf1 {[%clk 00:18:11]} {[%emt
00:00:49]} Re8 {[%clk 00:18:57]} {[%emt 00:01:31]} 25. Na5 {[%clk 00:14:17]}
{[%emt 00:04:24]} Rg8 {[%clk 00:11:15]} {[%emt 00:08:13]} 26. Rc6 {[%clk
00:11:55]} {[%emt 00:02:51]} Ra8 {[%clk 00:10:11]} {[%emt 00:01:34]} 27. Ke2
{[%clk 00:12:09]} {[%emt 00:00:16]} Be5 {[%clk 00:08:53]} {[%emt 00:01:48]} 28.
Rc2 {[%clk 00:11:54]} {[%emt 00:00:46]} Bd4 {[%clk 00:05:36]} {[%emt 00:03:47]}
29. Kf3 {[%clk 00:11:18]} {[%emt 00:01:05]} Bb6 {[%clk 00:04:12]} {[%emt
00:01:55]} 30. Nb3 {[%clk 00:07:02]} {[%emt 00:04:46]} a5 {[%clk 00:03:29]}
{[%emt 00:01:13]} 31. b5 {[%clk 00:04:05]} {[%emt 00:03:27]} Re8 {[%clk
00:02:01]} {[%emt 00:01:58]} 32. Rc6 {[%clk 00:02:52]} {[%emt 00:01:42]} Re1
{[%clk 00:01:17]} {[%emt 00:01:13]} 33. Nc5+ {[%clk 00:02:27]} {[%emt
00:00:57]} Bxc5 {[%clk 00:00:54]} {[%emt 00:00:53]} 34. Rxc5 {[%clk 00:02:56]}
Ra1 {[%clk 00:01:07]} {[%emt 00:00:17]} 35. Rxd5+ {[%clk 00:02:06]} {[%emt
00:01:20]} Ke6 {[%clk 00:01:30]} {[%emt 00:00:07]} 36. Rc5 {[%clk 00:02:04]}
{[%emt 00:00:32]} Rxa3 {[%clk 00:01:36]} {[%emt 00:00:23]} 37. Rxc7 {[%clk
00:01:52]} {[%emt 00:00:42]} Rxd3+ {[%clk 00:01:47]} {[%emt 00:00:19]} 38. Ke4
{[%clk 00:02:18]} {[%emt 00:00:05]} Rb3 {[%clk 00:01:26]} {[%emt 00:00:51]} 39.
Rc6+ {[%clk 00:02:34]} {[%emt 00:00:13]} Ke7 {[%clk 00:01:22]} {[%emt
00:00:34]} 40. b6 {[%clk 00:01:12]} {[%emt 00:01:52]} a4 {[%clk 00:01:04]}
{[%emt 00:00:48]} 41. Kd5 {[%clk 00:24:59]} {[%emt 00:06:43]} Rb5+ {[%clk
00:30:29]} {[%emt 00:01:05]} 42. Kc4 {[%clk 00:24:43]} {[%emt 00:00:46]} Rb2
{[%clk 00:28:03]} {[%emt 00:02:56]} 43. Kc5 {[%clk 00:23:01]} {[%emt 00:02:11]}
a3 {[%clk 00:24:57]} {[%emt 00:03:36]} 44. Rc7+ {[%clk 00:20:05]} {[%emt
00:03:26]} Ke6 {[%clk 00:24:56]} {[%emt 00:00:31]} 45. Ra7 {[%clk 00:17:27]}
{[%emt 00:03:08]} Rc2+ {[%clk 00:23:16]} {[%emt 00:02:10]} 46. Kd4 {[%clk
00:14:28]} {[%emt 00:03:29]} Rb2 {[%clk 00:20:27]} {[%emt 00:03:19]} 47. Rxa3
{[%clk 00:10:56]} {[%emt 00:04:03]} Rxb6 {[%clk 00:20:13]} {[%emt 00:00:44]} 48.
Ke3 {[%clk 00:10:57]} {[%emt 00:00:28]} Rb4 {[%clk 00:17:54]} {[%emt 00:02:48]}
49. g3 {[%clk 00:11:13]} {[%emt 00:00:16]} Kf5 {[%clk 00:17:10]} {[%emt
00:01:11]} 50. Ra8 {[%clk 00:11:25]} {[%emt 00:00:21]} Rb3+ {[%clk 00:15:43]}
{[%emt 00:01:56]} 51. Ke2 {[%clk 00:11:46]} {[%emt 00:00:09]} Rb2+ {[%clk
00:14:09]} {[%emt 00:02:04]} 52. Kf3 {[%clk 00:12:12]} {[%emt 00:00:05]} Rb3+
{[%clk 00:14:20]} {[%emt 00:00:18]} 53. Kg2 {[%clk 00:12:38]} {[%emt 00:00:04]}
h5 {[%clk 00:11:39]} {[%emt 00:03:11]} 54. Rg8 {[%clk 00:11:45]} {[%emt
00:01:23]} Ra3 {[%clk 00:11:20]} {[%emt 00:00:49]} 55. Rg7 {[%clk 00:12:10]}
{[%emt 00:00:06]} Ra7 {[%clk 00:10:23]} {[%emt 00:01:26]} 56. Rg8 {[%clk
00:06:56]} {[%emt 00:05:45]} Ra3 {[%clk 00:09:27]} {[%emt 00:01:24]} 57. Kf1
{[%clk 00:05:12]} {[%emt 00:02:15]} Ra1+ {[%clk 00:08:48]} {[%emt 00:01:09]} 58.
Ke2 {[%clk 00:05:04]} {[%emt 00:00:38]} Ra2+ {[%clk 00:08:46]} {[%emt
00:00:32]} 59. Kf3 {[%clk 00:04:38]} {[%emt 00:00:56]} Ra3+ {[%clk 00:08:59]}
{[%emt 00:00:15]} 60. Kg2 {[%clk 00:04:56]} {[%emt 00:00:14]} Rb3 {[%clk
00:08:53]} {[%emt 00:00:35]} 61. Rg7 {[%clk 00:04:13]} {[%emt 00:01:14]} Rb7
{[%clk 00:09:04]} {[%emt 00:00:18]} 62. Rh7 {[%clk 00:01:07]} {[%emt 00:03:37]}
Kg6 {[%clk 00:09:02]} {[%emt 00:00:32]} 63. Rh8 {[%clk 00:01:34]} {[%emt
00:00:03]} Rb3 {[%clk 00:08:15]} {[%emt 00:01:16]} 64. Re8 {[%clk 00:02:00]}
{[%emt 00:00:05]} Ra3 {[%clk 00:08:09]} {[%emt 00:00:37]} 65. Re4 {[%clk
00:02:20]} {[%emt 00:00:09]} f5 {[%emt 00:02:06]} 66. Rb4 {[%clk 00:02:45]} f6
{[%clk 00:06:22]} {[%emt 00:00:46]} 67. Rc4 {[%clk 00:02:19]} {[%emt 00:00:57]}
Rb3 {[%clk 00:06:39]} {[%emt 00:00:12]} 68. Ra4 {[%clk 00:02:44]} {[%emt
00:00:05]} Rc3 {[%clk 00:06:53]} {[%emt 00:00:15]} 69. Kf1 {[%clk 00:02:56]}
{[%emt 00:00:19]} Rc2 {[%clk 00:06:48]} {[%emt 00:00:35]} 70. Rd4 {[%clk
00:01:41]} {[%emt 00:01:45]} Ra2 {[%clk 00:07:10]} {[%emt 00:00:08]} 71. Ke1
{[%clk 00:02:01]} {[%emt 00:00:10]} Rb2 {[%clk 00:06:41]} {[%emt 00:00:59]} 72.
Rd2 {[%clk 00:01:24]} {[%emt 00:01:08]} Rb4 {[%clk 00:05:13]} {[%emt 00:01:57]}
73. Ke2 {[%clk 00:01:48]} {[%emt 00:00:06]} f4 {[%clk 00:05:12]} {[%emt
00:00:31]} 74. Kf3 {[%clk 00:02:08]} {[%emt 00:00:09]} 1/2-1/2

[Event "Elitserien 2022/2023"]
[Site "Elite Hotel Marina Plaza, Kungstorget 6, Helsingborg, Sweden"]
[Date "2022.10.14"]
[Round "1.11"]
[White "Lyrberg, Patrik"]
[Black "Norberg, Johan"]
[Result "0-1"]
[TimeControl "90 minutes for 40 moves + 30 minutes for the rest of the game + 30 seconds per move from move one."]
[WhiteTitle "IM"]
[BlackTitle "FM"]
[WhiteFideId "1701975"]
[BlackFideId "1707078"]
[WhiteElo "2449"]
[BlackElo "2275"]

1. d4 {[%clk 01:30:57]} {[%emt 00:00:01]} d6 {[%clk 01:30:50]} {[%emt
00:00:12]} 2. e4 {[%clk 01:31:13]} {[%emt 00:00:13]} Nf6 {[%clk 01:31:14]}
{[%emt 00:00:06]} 3. Nc3 {[%clk 01:31:28]} {[%emt 00:00:15]} g6 {[%clk
01:31:29]} {[%emt 00:00:16]} 4. Nf3 {[%clk 01:31:24]} {[%emt 00:00:34]} Bg7
{[%clk 01:31:38]} {[%emt 00:00:21]} 5. h3 {[%clk 01:31:15]} {[%emt 00:00:38]}
O-O {[%clk 01:30:39]} {[%emt 00:01:28]} 6. a4 {[%clk 01:23:31]} {[%emt
00:08:15]} c6 {[%clk 01:16:50]} {[%emt 00:14:19]} 7. Be2 {[%clk 01:10:57]}
{[%emt 00:13:04]} Nbd7 {[%clk 01:15:08]} {[%emt 00:02:11]} 8. O-O {[%clk
01:08:26]} {[%emt 00:03:02]} e5 {[%clk 01:11:10]} {[%emt 00:04:28]} 9. dxe5
{[%clk 00:56:56]} {[%emt 00:12:00]} dxe5 {[%clk 01:10:53]} {[%emt 00:00:47]} 10.
Be3 {[%clk 00:50:15]} {[%emt 00:07:10]} Qe7 {[%clk 01:09:15]} {[%emt 00:02:09]}
11. Qd3 {[%clk 00:46:41]} {[%emt 00:04:05]} Nh5 {[%clk 01:04:34]} {[%emt
00:05:10]} 12. Qc4 {[%clk 00:42:28]} {[%emt 00:04:43]} Nf4 {[%clk 00:58:44]}
{[%emt 00:06:20]} 13. a5 {[%clk 00:42:52]} {[%emt 00:00:05]} Re8 {[%clk
00:53:05]} {[%emt 00:06:09]} 14. Rfd1 {[%clk 00:35:37]} {[%emt 00:07:45]} Bf8
{[%clk 00:45:49]} {[%emt 00:07:46]} 15. Bf1 {[%clk 00:32:39]} {[%emt 00:03:28]}
Nf6 {[%clk 00:29:39]} {[%emt 00:16:41]} 16. Kh2 {[%clk 00:25:06]} {[%emt
00:08:01]} g5 {[%clk 00:12:12]} {[%emt 00:18:00]} 17. g3 {[%clk 00:19:11]}
{[%emt 00:06:24]} Nxh3 {[%clk 00:07:38]} {[%emt 00:05:05]} 18. Bxh3 {[%clk
00:19:09]} {[%emt 00:00:32]} g4 {[%clk 00:07:06]} {[%emt 00:01:01]} 19. Nh4
{[%clk 00:08:40]} {[%emt 00:10:59]} gxh3 {[%clk 00:07:23]} {[%emt 00:00:14]} 20.
Nf5 {[%clk 00:09:04]} {[%emt 00:00:05]} Qe6 {[%clk 00:02:31]} {[%emt 00:05:21]}
21. Qe2 {[%clk 00:05:49]} {[%emt 00:03:45]} Nxe4 {[%clk 00:02:13]} {[%emt
00:00:49]} 22. Nxe4 {[%clk 00:05:44]} {[%emt 00:00:34]} Qxf5 {[%clk 00:02:41]}
{[%emt 00:00:03]} 23. Bg5 {[%clk 00:05:58]} {[%emt 00:00:16]} Be6 {[%clk
00:01:15]} {[%emt 00:01:56]} 24. Nf6+ {[%clk 00:03:19]} {[%emt 00:03:09]} Kg7
{[%clk 00:01:33]} {[%emt 00:00:12]} 25. Nxe8+ {[%clk 00:02:30]} {[%emt
00:01:19]} Rxe8 {[%clk 00:02:01]} {[%emt 00:00:01]} 26. Rd8 {[%clk 00:02:13]}
{[%emt 00:00:48]} Rxd8 {[%clk 00:01:59]} {[%emt 00:00:32]} 27. Bxd8 {[%clk
00:02:38]} {[%emt 00:00:05]} Bc5 {[%clk 00:01:39]} {[%emt 00:00:51]} 28. c3
{[%clk 00:02:07]} {[%emt 00:01:01]} e4 {[%clk 00:00:58]} {[%emt 00:01:10]} 29.
Rf1 {[%clk 00:01:37]} {[%emt 00:01:00]} Qf3 {[%clk 00:00:35]} {[%emt 00:00:53]}
30. Qxf3 {[%clk 00:01:23]} {[%emt 00:00:44]} exf3 {[%clk 00:01:04]} {[%emt
00:00:01]} 31. g4 {[%clk 00:00:37]} {[%emt 00:01:17]} Bc4 {[%clk 00:01:13]}
{[%emt 00:00:20]} 32. Re1 {[%clk 00:00:35]} {[%emt 00:00:32]} Bxf2 {[%clk
00:01:27]} {[%emt 00:00:16]} 33. Re7 {[%clk 00:00:54]} {[%emt 00:00:11]} Bc5
{[%clk 00:01:38]} {[%emt 00:00:19]} 0-1

[Event "Elitserien 2022/2023"]
[Site "Elite Hotel Marina Plaza, Kungstorget 6, Helsingborg, Sweden"]
[Date "2022.10.14"]
[Round "1.12"]
[White "Janse, Love"]
[Black "Henriksson, Johan"]
[Result "1/2-1/2"]
[TimeControl "90 minutes for 40 moves + 30 minutes for the rest of the game + 30 seconds per move from move one."]
[BlackTitle "FM"]
[WhiteFideId "1707647"]
[BlackFideId "1703560"]
[WhiteElo "2219"]
[BlackElo "2265"]

1. e4 {[%clk 01:30:59]} c6 {[%clk 01:30:56]} {[%emt 00:00:05]} 2. d4 {[%clk
01:31:25]} {[%emt 00:00:04]} d5 {[%clk 01:31:17]} {[%emt 00:00:09]} 3. f3
{[%clk 01:31:54]} {[%emt 00:00:02]} e6 {[%clk 01:31:09]} {[%emt 00:00:38]} 4.
Be3 {[%clk 01:32:04]} {[%emt 00:00:19]} Nf6 {[%clk 01:24:28]} {[%emt 00:07:12]}
5. Nd2 {[%clk 01:31:40]} {[%emt 00:00:53]} Be7 {[%clk 01:20:26]} {[%emt
00:04:32]} 6. Bd3 {[%clk 01:28:07]} {[%emt 00:04:03]} b6 {[%clk 01:19:10]}
{[%emt 00:01:46]} 7. e5 {[%clk 01:27:14]} {[%emt 00:01:23]} Nfd7 {[%clk
01:18:10]} {[%emt 00:01:30]} 8. c3 {[%clk 01:27:11]} {[%emt 00:00:33]} Ba6
{[%clk 01:14:28]} {[%emt 00:04:12]} 9. Bc2 {[%clk 01:25:49]} {[%emt 00:01:52]}
c5 {[%clk 01:10:30]} {[%emt 00:04:28]} 10. f4 {[%clk 01:25:36]} {[%emt
00:00:42]} g6 {[%clk 01:09:36]} {[%emt 00:01:25]} 11. Ngf3 {[%clk 01:23:33]}
{[%emt 00:02:32]} Nc6 {[%clk 01:08:16]} {[%emt 00:01:51]} 12. a3 {[%clk
01:22:09]} {[%emt 00:01:53]} cxd4 {[%clk 01:02:35]} {[%emt 00:06:12]} 13. cxd4
{[%clk 01:22:11]} {[%emt 00:00:28]} Na5 {[%clk 01:00:53]} {[%emt 00:02:12]} 14.
h4 {[%clk 01:09:28]} {[%emt 00:13:13]} h5 {[%clk 00:57:43]} {[%emt 00:03:39]}
15. Ng5 {[%clk 01:08:19]} {[%emt 00:01:40]} Bxg5 {[%clk 00:54:04]} {[%emt
00:04:10]} 16. hxg5 {[%clk 01:08:15]} {[%emt 00:00:33]} Ke7 {[%clk 00:51:19]}
{[%emt 00:03:15]} 17. Kf2 {[%clk 01:03:07]} {[%emt 00:05:37]} Rc8 {[%clk
00:47:32]} {[%emt 00:04:17]} 18. Rc1 {[%clk 01:00:10]} {[%emt 00:03:27]} Qc7
{[%clk 00:39:47]} {[%emt 00:08:16]} 19. Qf3 {[%clk 00:55:43]} {[%emt 00:04:57]}
Qb7 {[%clk 00:39:04]} {[%emt 00:01:13]} 20. Bb1 {[%clk 00:49:53]} {[%emt
00:06:19]} Rxc1 {[%clk 00:37:46]} {[%emt 00:01:49]} 21. Rxc1 {[%clk 00:50:20]}
{[%emt 00:00:02]} Rc8 {[%clk 00:37:11]} {[%emt 00:01:05]} 22. Qd1 {[%clk
00:45:32]} {[%emt 00:05:19]} Rxc1 {[%clk 00:36:03]} {[%emt 00:01:38]} 23. Qxc1
{[%clk 00:46:00]} {[%emt 00:00:02]} Qc6 {[%clk 00:36:04]} {[%emt 00:00:29]} 24.
Qd1 {[%clk 00:36:37]} {[%emt 00:09:53]} Nc4 {[%clk 00:33:45]} {[%emt 00:02:49]}
25. Qc2 {[%clk 00:35:18]} {[%emt 00:01:49]} Nb8 {[%clk 00:31:34]} {[%emt
00:02:41]} 26. Nxc4 {[%clk 00:34:17]} {[%emt 00:01:31]} dxc4 {[%clk 00:27:18]}
{[%emt 00:04:46]} 27. Qe4 {[%clk 00:25:08]} {[%emt 00:09:38]} Bb7 {[%clk
00:27:22]} {[%emt 00:00:27]} 28. Qxc6 {[%clk 00:25:36]} {[%emt 00:00:02]} Bxc6
{[%clk 00:25:25]} {[%emt 00:02:27]} 29. Bd2 {[%clk 00:25:24]} {[%emt 00:00:42]}
Kd7 {[%clk 00:22:23]} {[%emt 00:03:32]} 30. Bb4 {[%clk 00:24:40]} {[%emt
00:01:13]} Bd5 {[%clk 00:17:16]} {[%emt 00:05:38]} 31. g3 {[%clk 00:24:33]}
{[%emt 00:00:37]} Nc6 {[%clk 00:16:18]} {[%emt 00:01:28]} 32. Ke3 {[%clk
00:25:00]} {[%emt 00:00:02]} Nxb4 {[%clk 00:11:13]} {[%emt 00:05:36]} 33. axb4
{[%clk 00:25:29]} Kc6 {[%clk 00:11:35]} {[%emt 00:00:08]} 34. Kd2 {[%clk
00:24:10]} {[%emt 00:01:48]} Kb5 {[%clk 00:11:48]} {[%emt 00:00:17]} 35. Kc3
{[%clk 00:24:37]} {[%emt 00:00:03]} a5 {[%clk 00:12:08]} {[%emt 00:00:10]} 36.
bxa5 {[%clk 00:24:17]} {[%emt 00:00:51]} Kxa5 {[%clk 00:12:30]} {[%emt
00:00:08]} 37. Bc2 {[%clk 00:19:17]} {[%emt 00:05:29]} b5 {[%clk 00:08:30]}
{[%emt 00:04:31]} 38. Bd1 {[%clk 00:17:15]} {[%emt 00:02:32]} b4+ {[%clk
00:08:28]} {[%emt 00:00:32]} 39. Kd2 {[%clk 00:17:09]} {[%emt 00:00:36]} Kb5
{[%clk 00:08:11]} {[%emt 00:00:47]} 40. Be2 {[%clk 00:17:09]} {[%emt 00:00:29]}
Ka5 {[%clk 00:06:20]} {[%emt 00:02:22]} 41. Bd1 {[%clk 00:12:03]} {[%emt
00:05:36]} Bc6 {[%clk 00:27:56]} {[%emt 00:08:54]} 42. Be2 {[%clk 00:41:15]}
{[%emt 00:01:17]} Bd5 {[%clk 00:24:43]} {[%emt 00:03:44]} 43. Bd1 {[%clk
00:41:04]} {[%emt 00:00:41]} Kb6 {[%clk 00:23:28]} {[%emt 00:01:46]} 44. Be2
{[%clk 00:40:25]} {[%emt 00:01:08]} Kc6 {[%clk 00:23:30]} {[%emt 00:00:28]} 45.
Bf1 {[%clk 00:39:40]} {[%emt 00:01:15]} Kc7 {[%clk 00:22:34]} {[%emt 00:01:26]}
46. Be2 {[%clk 00:39:52]} {[%emt 00:00:17]} Kb6 {[%clk 00:22:50]} {[%emt
00:00:15]} 47. Bf1 {[%clk 00:37:58]} {[%emt 00:02:23]} Ka5 {[%clk 00:22:01]}
{[%emt 00:01:20]} 48. Be2 {[%clk 00:38:23]} {[%emt 00:00:04]} Ka4 {[%clk
00:21:12]} {[%emt 00:01:20]} 49. Bd1+ {[%clk 00:38:48]} {[%emt 00:00:04]} Kb5
{[%clk 00:19:58]} {[%emt 00:01:44]} 50. Be2 {[%clk 00:39:04]} {[%emt 00:00:15]}
Ka5 {[%clk 00:20:15]} {[%emt 00:00:13]} 1/2-1/2

[Event "Elitserien 2022/2023"]
[Site "Elite Hotel Marina Plaza, Kungstorget 6, Helsingborg, Sweden"]
[Date "2022.10.14"]
[Round "1.13"]
[White "Aronsson, Marten"]
[Black "Landgren, Andreas"]
[Result "1/2-1/2"]
[TimeControl "90 minutes for 40 moves + 30 minutes for the rest of the game + 30 seconds per move from move one."]
[WhiteTitle "FM"]
[BlackTitle "FM"]
[WhiteFideId "1724223"]
[BlackFideId "1704311"]
[WhiteElo "2221"]
[BlackElo "2230"]

1. d4 {[%clk 01:30:54]} {[%emt 00:00:06]} Nf6 {[%clk 01:30:52]} {[%emt
00:00:08]} 2. Nf3 {[%clk 01:31:17]} {[%emt 00:00:07]} e6 {[%clk 01:31:15]}
{[%emt 00:00:07]} 3. g3 {[%clk 01:31:30]} {[%emt 00:00:17]} d5 {[%clk
01:31:14]} {[%emt 00:00:31]} 4. Bg2 {[%clk 01:31:48]} {[%emt 00:00:12]} c5
{[%clk 01:31:21]} {[%emt 00:00:22]} 5. O-O {[%clk 01:31:44]} {[%emt 00:00:33]}
Nc6 {[%clk 01:31:27]} {[%emt 00:00:24]} 6. c4 {[%clk 01:31:35]} {[%emt
00:00:40]} dxc4 {[%clk 01:31:47]} {[%emt 00:00:10]} 7. dxc5 {[%clk 01:30:59]}
{[%emt 00:01:07]} Qxd1 {[%clk 01:31:49]} {[%emt 00:00:27]} 8. Rxd1 {[%clk
01:31:22]} {[%emt 00:00:07]} Bxc5 {[%clk 01:32:11]} {[%emt 00:00:08]} 9. Nbd2
{[%clk 01:31:25]} {[%emt 00:00:28]} c3 {[%clk 01:32:32]} {[%emt 00:00:08]} 10.
bxc3 {[%clk 01:31:43]} {[%emt 00:00:12]} O-O {[%clk 01:30:54]} {[%emt
00:02:08]} 11. Ne1 {[%clk 01:25:24]} {[%emt 00:06:49]} Bd7 {[%clk 01:13:05]}
{[%emt 00:18:20]} 12. Nd3 {[%clk 01:15:01]} {[%emt 00:10:53]} Be7 {[%clk
01:13:11]} {[%emt 00:00:24]} 13. Nc4 {[%clk 01:13:02]} {[%emt 00:02:28]} Rfd8
{[%clk 01:06:45]} {[%emt 00:06:56]} 14. Rb1 {[%clk 01:09:06]} {[%emt 00:04:27]}
b6 {[%clk 01:01:59]} {[%emt 00:05:15]} 15. Ba3 {[%clk 00:53:57]} {[%emt
00:15:39]} Rac8 {[%clk 00:53:59]} {[%emt 00:08:31]} 16. Nd6 {[%clk 00:37:29]}
{[%emt 00:16:57]} Bxd6 {[%clk 00:47:41]} {[%emt 00:06:48]} 17. Bxd6 {[%clk
00:37:53]} {[%emt 00:00:06]} Be8 {[%clk 00:43:04]} {[%emt 00:05:07]} 18. Nb4
{[%clk 00:23:56]} {[%emt 00:14:27]} Nxb4 {[%clk 00:34:36]} {[%emt 00:08:58]} 19.
Bxb4 {[%clk 00:23:59]} {[%emt 00:00:28]} Ba4 {[%clk 00:33:17]} {[%emt
00:01:49]} 20. Rxd8+ {[%clk 00:20:12]} {[%emt 00:04:17]} Rxd8 {[%clk 00:33:39]}
{[%emt 00:00:07]} 21. c4 {[%clk 00:19:54]} {[%emt 00:00:48]} Rc8 {[%clk
00:28:39]} {[%emt 00:05:30]} 22. Rc1 {[%clk 00:18:59]} {[%emt 00:01:25]} Nd7
{[%clk 00:18:31]} {[%emt 00:10:38]} 23. Ba3 {[%clk 00:18:34]} {[%emt 00:00:56]}
f6 {[%clk 00:15:02]} {[%emt 00:03:59]} 24. f4 {[%clk 00:18:17]} {[%emt
00:00:47]} Kf7 {[%clk 00:13:58]} {[%emt 00:01:35]} 25. Kf2 {[%clk 00:17:52]}
{[%emt 00:00:54]} Nc5 {[%clk 00:13:22]} {[%emt 00:01:06]} 1/2-1/2